bitfinex/quotes_SOLUSD_20251201
["timestamp","ask_amount","ask_price","bid_price","bid_amount"]
[1764569769831,0.7,126.77,126.75,27.61286168]
[1764569769832,0.7,126.77,126.75,32.10053294]
[1764569770033,0.7,126.77,126.75,7.88954635]
[1764569770229,0.7,126.77,126.73,4.48767126]
[1764569770433,0.7,126.77,126.73,12.37821049]
[1764569773657,8.80994492,126.76,126.73,12.37821049]
[1764569773870,3.48,126.75,126.71,8.58152433]
[1764569774158,4.18,126.75,126.71,28.31161666]
[1764569774341,0.7,126.74,126.73,4.48767126]
[1764569775465,0.7,126.74,126.72,4.48767126]
[1764569776156,0.7,126.74,126.71,4.48767126]
[1764569776362,8.59017456,126.74,126.7,12.3800487]
[1764569776605,8.80994492,126.73,126.69,7.89319652]
[1764569776731,3.48,126.72,126.69,12.38086778]
[1764569776938,0.7,126.71,126.7,4.48767126]
[1764569777632,3.48,126.72,126.7,4.48767126]
[1764569777850,4.18,126.72,126.7,4.48767126]
[1764569778753,4.18,126.72,126.7,12.38013907]
[1764569779452,0.7,126.71,126.69,7.89301927]
[1764569779753,0.7,126.71,126.7,4.48767126]
[1764569780648,0.7,126.71,126.7,12.38033108]
[1764569781443,0.7,126.71,126.7,7.89265982]
[1764569781758,0.7,126.71,126.7,4.48767126]
[1764569783737,0.7,126.71,126.7,12.38033108]
[1764569784155,66.18,126.72,126.7,12.38033108]
[1764569784853,0.7,126.71,126.7,12.38033108]
[1764569786361,0.7,126.71,126.7,7.89265982]
[1764569786549,0.7,126.71,126.67,16.308864]
[1764569786550,21.49653526,126.71,126.67,7.89452909]
[1764569786857,3.48,126.7,126.67,7.89452909]
[1764569787049,0.71,126.69,126.67,7.89452909]
[1764569787244,3.48,126.68,126.67,7.89452909]
[1764569787964,3.48,126.68,126.67,12.38220035]
[1764569791167,0.71,126.7,126.67,13.03220035]
[1764569791346,3.48,126.69,126.68,4.48767126]
[1764569791951,4.19,126.69,126.68,4.48767126]
[1764569792560,3.48,126.69,126.68,12.38157716]
[1764569792768,3.48,126.69,126.68,13.03157716]
[1764569793070,3.48,126.69,126.68,7.8939059]
[1764569793256,3.48,126.69,126.68,12.38157716]
[1764569793665,3.48,126.69,126.67,0.65]
[1764569793666,4.19,126.69,126.67,12.38201314]
[1764569793860,0.71,126.68,126.67,12.38201314]
[1764569794046,0.71,126.68,126.67,4.48767126]
[1764569794854,0.71,126.68,126.66,8.09491171]
[1764569795043,0.71,126.68,126.66,12.58258297]
[1764569795465,0.71,126.68,126.67,4.48767126]
[1764569795866,0.71,126.68,126.66,8.09491171]
[1764569796172,0.71,126.68,126.66,12.58258297]
[1764569797063,0.71,126.68,126.67,4.48767126]
[1764569798262,4.19,126.69,126.67,4.48767126]
[1764569798851,0.71,126.68,126.67,4.48767126]
[1764569799550,0.71,126.68,126.66,12.58258297]
[1764569801147,0.71,126.68,126.67,4.48767126]
[1764569801353,0.71,126.68,126.67,12.38220035]
[1764569802561,62.71,126.68,126.67,12.38220035]
[1764569806054,62.71,126.68,126.67,7.89452909]
[1764569806259,62.71,126.68,126.67,12.38220035]
[1764569807888,62.71,126.68,126.67,7.89452909]
[1764569808065,62.71,126.68,126.67,12.38220035]
[1764569808597,62.71,126.68,126.67,7.89452909]
[1764569809078,62.71,126.68,126.67,12.38220035]
[1764569809381,62.71,126.68,126.67,7.89452909]
[1764569810386,62.71,126.68,126.66,12.58252935]
[1764569810886,151.00761618,126.67,126.66,0.2]
[1764569811084,154.48761618,126.67,126.66,0.2]
[1764569811262,167.48761618,126.67,126.66,0.2]
[1764569811591,167.48761618,126.67,126.61,4.48767126]
[1764569811892,13.29761618,126.65,126.61,12.38593515]
[1764569812183,8.80994492,126.63,126.61,12.38593515]
[1764569812387,3.48,126.62,126.61,12.38593515]
[1764569813577,3.48,126.62,126.61,4.48767126]
[1764569813782,3.48,126.62,126.61,12.38594153]
[1764569815485,3.48,126.62,126.61,7.89827027]
[1764569815672,3.48,126.62,126.61,12.38594153]
[1764569817162,3.48,126.62,126.61,13.05594153]
[1764569817575,3.48,126.62,126.61,7.89827027]
[1764569817771,3.48,126.62,126.61,13.05594153]
[1764569818172,3.48,126.62,126.61,12.38594153]
[1764569819586,3.48,126.62,126.61,8.56827027]
[1764569819890,3.48,126.62,126.61,13.05594153]
[1764569820892,16.70513068,126.66,126.61,32.80161722]
[1764569820893,8.80994492,126.66,126.61,32.80161722]
[1764569821189,3.48,126.65,126.64,4.48767126]
[1764569821571,3.48,126.65,126.64,13.0540705]
[1764569823268,3.48,126.65,126.64,12.3840705]
[1764569823486,8.80994492,126.64,126.62,12.38524142]
[1764569823801,3.48,126.63,126.62,7.89757016]
[1764569824286,8.80994492,126.62,126.58,12.38726893]
[1764569824489,0.72,126.64,126.61,4.48767126]
[1764569824692,12.28994492,126.63,126.62,4.48767126]
[1764569825294,3.48,126.63,126.62,13.05531776]
[1764569828290,9.52994492,126.65,126.62,13.05531776]
[1764569828484,9.52994492,126.65,126.63,4.48767126]
[1764569828798,3.48,126.64,126.63,4.48767126]
[1764569828979,9.52994492,126.65,126.63,4.48767126]
[1764569829174,3.48,126.64,126.63,4.48767126]
[1764569830076,3.48,126.64,126.63,13.05469408]
[1764569830493,62.0,126.66,126.63,31.18646962]
[1764569830681,3.48,126.65,126.64,0.67]
[1764569830889,3.48,126.65,126.64,3.54688975]
[1764569831698,3.48,126.65,126.64,11.44328899]
[1764569833094,62.0,126.66,126.64,11.44328899]
[1764569833095,62.0,126.66,126.64,31.18428709]
[1764569833271,3.48,126.68,126.65,15.05444875]
[1764569833469,3.48,126.68,126.67,2.87688975]
[1764569833670,3.48,126.68,126.67,10.77141884]
[1764569833895,3.48,126.68,126.67,11.44141884]
[1764569838803,75.0,126.75,126.67,73.52727676]
[1764569838987,4.2,126.75,126.74,2.87688975]
[1764569839484,4.2,126.75,126.73,2.87688975]
[1764569839683,4.2,126.75,126.72,2.87688975]
[1764569839684,0.72,126.74,126.72,2.87688975]
[1764569839990,2.87688975,126.73,126.69,2.87688975]
[1764569840191,3.48,126.72,126.69,2.87688975]
[1764569840708,0.72,126.71,126.69,2.87688975]
[1764569840898,9.52994492,126.71,126.69,10.76960933]
[1764569842810,8.80994492,126.72,126.7,2.87688975]
[1764569842983,9.52994492,126.72,126.71,2.87688975]
[1764569843185,13.00994492,126.72,126.71,2.87688975]
[1764569843811,3.48,126.72,126.71,2.87688975]
[1764569844188,65.48,126.72,126.71,2.87688975]
[1764569844584,65.48,126.72,126.71,10.76892668]
[1764569845102,66.2,126.72,126.71,10.76892668]
[1764569845904,66.2,126.72,126.71,7.89203693]
[1764569847897,8.80994492,126.71,126.68,10.77079565]
[1764569848207,9.47994492,126.71,126.7,2.87688975]
[1764569848587,9.47994492,126.71,126.69,2.87688975]
[1764569848915,62.67,126.7,126.68,10.77079565]
[1764569849084,3.48,126.69,126.68,7.8939059]
[1764569849504,3.48,126.69,126.68,10.77079565]
[1764569850003,3.48,126.69,126.68,7.8939059]
[1764569853988,3.48,126.69,126.68,8.6039059]
[1764569857421,3.48,126.71,126.68,28.33867066]
[1764569857730,3.48,126.71,126.69,0.71]
[1764569858220,3.48,126.71,126.7,2.87688975]
[1764569858400,3.48,126.71,126.7,10.76954957]
[1764569861534,3.48,126.71,126.68,2.87688975]
[1764569861535,63.88420481,126.7,126.68,2.87688975]
[1764569861702,3.48,126.69,126.66,31.95481617]
[1764569861901,3.48,126.69,126.67,8.60452909]
[1764569862802,3.48,126.69,126.68,2.87688975]
[1764569863327,3.48,126.69,126.68,10.77079565]
[1764569866129,3.48,126.69,126.68,11.48079565]
[1764569874193,4.15,126.69,126.68,2.87688975]
[1764569874449,63.88420481,126.68,126.66,2.87688975]
[1764569874653,12.28994492,126.67,126.66,2.87688975]
[1764569874829,12.95994492,126.67,126.66,2.87688975]
[1764569875348,12.95994492,126.67,126.65,7.8956152]
[1764569875645,12.95994492,126.67,126.65,2.87688975]
[1764569875646,9.47994492,126.66,126.65,2.87688975]
[1764569877431,9.47994492,126.66,126.63,7.8967581]
[1764569877645,8.80994492,126.64,126.63,2.87688975]
[1764569878140,9.49994492,126.64,126.63,2.87688975]
[1764569878754,9.49994492,126.64,126.61,7.89810403]
[1764569878947,8.80994492,126.62,126.61,2.87688975]
[1764569879339,9.49994492,126.62,126.61,2.87688975]
[1764569879753,9.49994492,126.62,126.6,2.87688975]
[1764569879956,4.17,126.61,126.6,2.87688975]
[1764569880861,3.48,126.61,126.6,10.7757839]
[1764569883368,3.48,126.61,126.6,11.4457839]
[1764569885570,3.48,126.61,126.6,10.7757839]
[1764569886659,55.07425989,126.62,126.6,22.9533429]
[1764569886862,55.07425989,126.62,126.61,3.54688975]
[1764569888363,55.07425989,126.62,126.61,11.44516002]
[1764569890847,55.07425989,126.62,126.61,10.77516002]
[1764569891351,55.76425989,126.62,126.61,2.87688975]
[1764569891665,0.69,126.62,126.61,2.87688975]
[1764569892170,0.69,126.62,126.61,10.77516002]
[1764569892464,0.69,126.62,126.61,12.39575766]
[1764569893167,9.49994492,126.62,126.61,4.49748739]
[1764569898674,9.49994492,126.62,126.6,12.39637032]
[1764569898876,3.48,126.61,126.6,12.39637032]
[1764569903571,65.48,126.61,126.6,12.39637032]
[1764569904200,65.48,126.61,126.6,13.06637032]
[1764569904376,62.0,126.61,126.6,17.56385771]
[1764569909368,3.48,126.63,126.6,17.56385771]
[1764569909573,3.48,126.63,126.62,4.49748739]
[1764569910075,3.48,126.63,126.62,5.20748739]
[1764569911667,62.68,126.67,126.62,32.84925014]
[1764569911869,65.48,126.66,126.63,0.71]
[1764569913076,65.48,126.66,126.65,4.49748739]
[1764569914898,65.48,126.66,126.65,12.39326314]
[1764569916372,66.16,126.66,126.65,12.39326314]
[1764569918694,74.96994492,126.66,126.65,4.49748739]
[1764569918901,8.80994492,126.65,126.64,4.49748739]
[1764569919093,9.48994492,126.65,126.64,4.49748739]
[1764569927204,9.48994492,126.65,126.63,7.89692003]
[1764569927405,3.48,126.64,126.63,7.89692003]
[1764569928409,3.48,126.64,126.63,12.39440742]
[1764569930299,65.48,126.64,126.63,12.39440742]
[1764569932314,65.48,126.64,126.63,13.10440742]
[1764569934807,137.0,126.72,126.63,53.65331586]
[1764569934991,0.68,126.7,126.69,4.49748739]
[1764569935187,3.48,126.71,126.69,5.20748739]
[1764569935401,3.48,126.71,126.7,4.49748739]
[1764569936306,4.17,126.71,126.7,4.49748739]
[1764569936504,8.80994492,126.7,126.69,4.49748739]
[1764569936701,9.49994492,126.7,126.66,20.282629]
[1764569936906,8.80994492,126.68,126.66,12.39235861]
[1764569937106,3.48,126.67,126.66,12.39235861]
[1764569940315,4.17,126.67,126.66,12.39235861]
[1764569940613,66.17,126.67,126.63,0.67]
[1764569940909,71.49994492,126.66,126.65,4.49748739]
[1764569941897,71.49994492,126.66,126.64,7.89619747]
[1764569942098,71.49994492,126.66,126.65,4.49748739]
[1764569942300,74.97994492,126.66,126.65,4.49748739]
[1764569944312,74.97994492,126.66,126.64,7.89619747]
[1764569944511,74.97994492,126.66,126.65,4.49748739]
[1764569945801,74.97994492,126.66,126.64,12.39368486]
[1764569946127,74.97994492,126.66,126.65,4.49748739]
[1764569949015,74.97994492,126.66,126.64,7.89619747]
[1764569949242,74.97994492,126.66,126.65,4.49748739]
[1764569949920,74.97994492,126.66,126.61,63.69477886]
[1764569949921,74.97994492,126.66,126.61,7.89619747]
[1764569950217,8.80994492,126.64,126.61,4.49748739]
[1764569950423,3.48,126.63,126.61,4.49748739]
[1764569950608,4.17,126.63,126.61,4.49748739]
[1764569951725,3.48,126.63,126.61,4.49748739]
[1764569951927,12.28994492,126.63,126.62,5.16748739]
[1764569952515,12.28994492,126.63,126.62,4.49748739]
[1764569953021,12.28994492,126.63,126.61,0.67]
[1764569953223,12.28994492,126.63,126.62,4.49748739]
[1764569954228,12.97994492,126.63,126.61,4.49748739]
[1764569954427,12.28994492,126.63,126.62,2.878424]
[1764569954727,12.28994492,126.63,126.61,0.67]
[1764569954728,12.28994492,126.63,126.59,7.89929248]
[1764569954902,12.28994492,126.63,126.61,2.878424]
[1764569956322,20.87699482,126.63,126.61,2.878424]
[1764569957021,20.18699482,126.63,126.61,2.878424]
[1764569957215,9.49994492,126.62,126.58,8.56979803]
[1764569957421,3.48,126.61,126.6,2.878424]
[1764569958020,65.48,126.62,126.6,22.96080904]
[1764569958220,65.48,126.62,126.61,3.548424]
[1764569958426,3.48,126.62,126.61,3.548424]
[1764569960046,3.48,126.62,126.58,42.71059671]
[1764569960329,66.17,126.62,126.6,2.878424]
[1764569961409,66.17,126.62,126.59,11.44750305]
[1764569961608,65.48,126.62,126.6,3.548424]
[1764569961810,66.17,126.62,126.6,2.878424]
[1764569962822,62.0,126.61,126.59,2.878424]
[1764569963018,62.0,126.61,126.57,16.308864]
[1764569963019,3.48,126.6,126.58,2.878424]
[1764569963334,3.48,126.6,126.58,3.548424]
[1764569964219,12.28994492,126.6,126.59,3.548424]
[1764569964533,74.28994492,126.6,126.59,2.878424]
[1764569965001,74.97994492,126.6,126.57,7.90076637]
[1764569965207,74.28994492,126.6,126.58,2.878424]
[1764569965418,74.28994492,126.6,126.58,3.548424]
[1764569965602,74.97994492,126.6,126.57,8.57076637]
[1764569965810,74.97994492,126.6,126.58,2.878424]
[1764569966839,74.28994492,126.6,126.59,2.878424]
[1764569967340,74.28994492,126.6,126.58,3.568424]
[1764569969747,74.28994492,126.6,126.58,11.46856339]
[1764569970847,9.48994492,126.59,126.56,0.2]
[1764569971043,3.48,126.58,126.57,2.878424]
[1764569972439,3.48,126.58,126.57,3.588424]
[1764569973430,3.48,126.58,126.57,11.48919037]
[1764569979322,3.48,126.58,126.57,2.878424]
[1764569979323,4.16,126.58,126.57,2.878424]
[1764569979548,3.48,126.58,126.57,2.878424]
[1764569979725,3.48,126.58,126.57,3.588424]
[1764569981347,3.48,126.58,126.57,11.48919037]
[1764569982647,3.48,126.58,126.57,10.77919037]
[1764569982849,3.48,126.58,126.57,11.48919037]
[1764569986156,3.48,126.58,126.57,8.61076637]
[1764569986451,3.48,126.58,126.57,11.48919037]
[1764569987034,3.48,126.58,126.57,8.61076637]
[1764569987235,3.48,126.58,126.57,11.48919037]
[1764569987641,3.48,126.58,126.57,10.77919037]
[1764569987843,65.48,126.58,126.57,2.878424]
[1764569988046,70.80994492,126.57,126.56,0.2]
[1764569988347,71.48994492,126.57,126.56,0.2]
[1764569989331,79.39071129,126.57,126.56,0.2]
[1764569991347,157.26913529,126.57,126.56,0.2]
[1764569992640,95.26913529,126.57,126.56,0.2]
[1764569994349,111.57799929,126.57,126.56,0.2]
[1764569995953,108.69957529,126.57,126.56,0.2]
[1764569996133,111.57799929,126.57,126.56,0.2]
[1764569999358,33.69957529,126.57,126.56,0.2]
[1764569999654,108.69957529,126.57,126.56,0.2]
[1764569999853,111.57799929,126.57,126.56,0.2]
[1764570000434,111.57799929,126.57,126.55,0.2]
[1764570000435,83.80994492,126.56,126.55,0.2]
[1764570000648,100.11880892,126.55,126.54,0.2]
[1764570000846,103.68723292,126.55,126.54,0.2]
[1764570001357,89.37836891,126.55,126.54,0.2]
[1764570001557,97.28038392,126.55,126.54,0.2]
[1764570004462,11.68836892,126.51,126.5,0.2]
[1764570004852,16.71445839,126.51,126.5,0.2]
[1764570005374,17.37445839,126.51,126.5,0.2]
[1764570005887,20.25288239,126.51,126.5,0.2]
[1764570007174,160.80994491,126.5,126.49,0.2]
[1764570007461,167.82836891,126.5,126.49,0.2]
[1764570007842,229.82836891,126.5,126.49,0.2]
[1764570008250,227.82836892,126.5,126.49,0.2]
[1764570008445,229.82836891,126.5,126.49,0.2]
[1764570009178,237.73350724,126.5,126.49,0.2]
[1764570010372,175.73350724,126.5,126.49,0.2]
[1764570010744,173.73350725,126.5,126.49,0.2]
[1764570010946,175.73350724,126.5,126.49,0.2]
[1764570011245,279.13350724,126.5,126.49,0.2]
[1764570013069,277.13350725,126.5,126.49,0.2]
[1764570013268,279.13350724,126.5,126.49,0.2]
[1764570014069,300.89350725,126.5,126.49,0.2]
[1764570014375,278.76492249,126.5,126.49,0.2]
[1764570015262,83.80994492,126.5,126.49,0.89]
[1764570015451,91.81978416,126.5,126.49,0.2]
[1764570016669,16.81978416,126.5,126.49,0.2]
[1764570016874,16.81978416,126.5,126.49,0.89]
[1764570018271,12.30994492,126.5,126.49,0.89]
[1764570019978,24.72492249,126.5,126.49,0.2]
[1764570020756,24.72492249,126.5,126.49,0.89]
[1764570022177,16.81978416,126.5,126.49,0.89]
[1764570022755,12.30994492,126.5,126.49,0.89]
[1764570022957,16.81978416,126.5,126.49,0.89]
[1764570024488,12.30994492,126.5,126.49,0.89]
[1764570024983,16.81978416,126.5,126.49,0.89]
[1764570026382,91.81978416,126.5,126.49,0.89]
[1764570026684,16.81978416,126.5,126.49,0.89]
[1764570028780,16.81978416,126.5,126.49,0.2]
[1764570029172,16.81978416,126.5,126.49,0.88]
[1764570030062,3.5,126.5,126.49,0.88]
[1764570030562,3.5,126.5,126.49,8.7857633]
[1764570037978,3.5,126.5,126.49,0.88]
[1764570038859,92.47978416,126.5,126.49,0.2]
[1764570039091,91.81978416,126.5,126.49,0.2]
[1764570039358,167.47978416,126.5,126.49,0.2]
[1764570039791,191.69378649,126.5,126.49,0.2]
[1764570039978,17.8296234,126.49,126.48,0.2]
[1764570040174,88.3953867,126.49,126.48,0.2]
[1764570045992,8.80994492,126.46,126.45,0.67]
[1764570046205,16.81978416,126.46,126.45,0.67]
[1764570048700,24.72742293,126.46,126.45,0.67]
[1764570049385,70.80994492,126.45,126.44,0.87]
[1764570049590,75.31978416,126.45,126.44,0.87]
[1764570053217,70.80994492,126.45,126.44,0.87]
[1764570053417,3.5,126.46,126.44,8.77888959]
[1764570053589,3.5,126.46,126.45,0.67]
[1764570054100,8.00983924,126.46,126.45,0.67]
[1764570054704,15.91747801,126.46,126.45,0.67]
[1764570054887,8.80994492,126.45,126.44,0.87]
[1764570055097,13.31978416,126.45,126.44,0.87]
[1764570069928,96.88804829,126.45,126.44,0.2]
[1764570071221,96.22804829,126.45,126.44,0.2]
[1764570072408,21.22804829,126.45,126.44,0.2]
[1764570073099,96.22804829,126.45,126.44,0.2]
[1764570074430,101.39788753,126.45,126.44,0.2]
[1764570074610,158.80994492,126.43,126.41,0.72]
[1764570074926,70.00983924,126.42,126.41,0.72]
[1764570075416,8.80994492,126.41,126.38,0.2]
[1764570075736,8.80994492,126.41,126.4,0.72]
[1764570075924,12.30994492,126.41,126.4,0.72]
[1764570076749,15.19956261,126.41,126.4,0.72]
[1764570080440,8.80994492,126.39,126.38,0.92]
[1764570080648,15.19956261,126.39,126.38,0.92]
[1764570081541,12.30994492,126.39,126.38,0.92]
[1764570082549,3.5,126.39,126.38,3.80961769]
[1764570082847,72.79749564,126.46,126.38,47.8127371]
[1764570083028,12.30994492,126.45,126.41,2.88961769]
[1764570083221,12.30994492,126.45,126.43,2.88961769]
[1764570083222,3.5,126.45,126.43,2.88961769]
[1764570083613,3.5,126.45,126.44,0.72]
[1764570083818,3.5,126.45,126.44,3.60961769]
[1764570084138,3.5,126.45,126.44,0.72]
[1764570090670,3.5,126.45,126.44,11.51850728]
[1764570091983,3.5,126.47,126.44,11.51850728]
[1764570092149,3.5,126.47,126.46,2.88961769]
[1764570092560,3.5,126.47,126.46,3.59961769]
[1764570093150,3.5,126.47,126.46,0.71]
[1764570094176,3.5,126.47,126.46,8.61763877]
[1764570099079,12.30994492,126.47,126.45,0.71]
[1764570099385,12.30994492,126.47,126.46,0.71]
[1764570100697,12.30994492,126.47,126.45,0.71]
[1764570101070,8.80994492,126.46,126.44,8.61888959]
[1764570101262,3.48,126.45,126.44,8.61888959]
[1764570105188,12.28994492,126.45,126.43,0.71]
[1764570106379,12.28994492,126.45,126.42,27.1083011]
[1764570106380,8.80994492,126.44,126.41,11.51017352]
[1764570106584,3.48,126.43,126.41,8.62055583]
[1764570106791,3.48,126.43,126.42,0.71]
[1764570107904,3.48,126.43,126.41,7.91055583]
[1764570108072,3.48,126.43,126.41,8.62055583]
[1764570108875,3.48,126.43,126.42,0.71]
[1764570112909,3.48,126.43,126.42,8.6201408]
[1764570113083,62.0,126.45,126.42,11.50975849]
[1764570113281,62.0,126.45,126.44,2.88961769]
[1764570113483,3.48,126.46,126.43,3.59961769]
[1764570113679,3.48,126.46,126.43,11.50890256]
[1764570113902,3.48,126.46,126.44,0.71]
[1764570117114,9.46994492,126.45,126.42,7.90980959]
[1764570117314,65.48,126.44,126.42,0.71]
[1764570117613,74.28994492,126.44,126.43,0.71]
[1764570118311,8.80994492,126.43,126.41,0.71]
[1764570118610,3.48,126.42,126.41,0.71]
[1764570120108,3.48,126.42,126.41,3.59961769]
[1764570120312,3.48,126.42,126.41,0.71]
[1764570120622,3.48,126.42,126.41,8.62076655]
[1764570121499,3.48,126.42,126.41,11.51038424]
[1764570121820,12.28994492,126.48,126.41,31.28730062]
[1764570122022,12.28994492,126.48,126.44,2.88961769]
[1764570122425,12.28994492,126.48,126.45,0.71]
[1764570122920,12.28994492,126.48,126.45,8.6179536]
[1764570124330,3.48,126.48,126.47,2.88961769]
[1764570124825,3.48,126.48,126.47,3.59961769]
[1764570125404,3.48,126.5,126.47,11.50663121]
[1764570125720,3.48,126.5,126.48,3.59961769]
[1764570126119,3.48,126.5,126.49,0.71]
[1764570128621,3.48,126.5,126.49,11.50538099]
[1764570129406,7.90269517,126.54,126.49,11.50538099]
[1764570129606,65.48,126.53,126.5,3.59961769]
[1764570129813,65.48,126.53,126.5,0.71]
[1764570130012,65.48,126.53,126.51,0.71]
[1764570130213,65.48,126.53,126.49,10.79538099]
[1764570130214,8.80994492,126.52,126.5,0.71]
[1764570130512,3.48,126.51,126.5,0.71]
[1764570130715,3.48,126.51,126.48,11.50575465]
[1764570131007,3.48,126.51,126.48,8.61613696]
[1764570131728,8.80994492,126.5,126.48,0.71]
[1764570131931,3.48,126.49,126.48,0.71]
[1764570132322,3.48,126.49,126.48,3.59961769]
[1764570132727,3.48,126.49,126.48,11.50600605]
[1764570135633,3.48,126.49,126.46,7.90752071]
[1764570135634,7.02961769,126.49,126.46,7.90752071]
[1764570135819,62.0,126.48,126.45,10.79762043]
[1764570136009,62.0,126.48,126.47,3.59961769]
[1764570136624,3.48,126.49,126.47,3.59961769]
[1764570136826,3.48,126.49,126.48,3.59961769]
[1764570137038,3.48,126.49,126.48,0.71]
[1764570139542,181.87755864,126.53,126.48,29.43262769]
[1764570139543,62.0,126.53,126.48,29.43262769]
[1764570139744,65.48,126.53,126.5,4.50737533]
[1764570140246,65.48,126.53,126.51,0.71]
[1764570140436,3.48,126.53,126.51,5.21737533]
[1764570140846,3.48,126.53,126.52,5.21737533]
[1764570143436,3.48,126.53,126.52,13.12126404]
[1764570144130,3.48,126.53,126.52,5.21737533]
[1764570146767,3.48,126.53,126.52,0.71]
[1764570147465,11.38369991,126.53,126.49,24.62042318]
[1764570147671,12.03369991,126.53,126.49,13.08312008]
[1764570147848,11.38369991,126.53,126.51,4.50737533]
[1764570148348,11.38369991,126.53,126.51,5.17737533]
[1764570149361,11.38369991,126.53,126.5,0.67]
[1764570150552,11.38369991,126.53,126.5,5.17737533]
[1764570152468,11.38369991,126.53,126.45,25.9427915]
[1764570152469,13.31732025,126.52,126.45,25.9427915]
[1764570152675,8.80994492,126.48,126.45,19.75618228]
[1764570152872,3.48,126.47,126.44,5.19737533]
[1764570153073,7.98737533,126.47,126.44,0.69]
[1764570153575,4.50737533,126.45,126.41,0.69]
[1764570153780,3.48,126.44,126.41,0.69]
[1764570154372,11.38889605,126.44,126.41,0.69]
[1764570155583,15.89627138,126.44,126.41,0.69]
[1764570155983,3.48,126.44,126.41,0.69]
[1764570156170,3.48,126.44,126.41,5.19737533]
[1764570156577,3.48,126.44,126.42,0.69]
[1764570159584,11.38890984,126.44,126.41,5.19737533]
[1764570159785,11.38890984,126.44,126.41,0.69]
[1764570160185,11.38890984,126.44,126.42,0.69]
[1764570161665,3.48,126.44,126.42,0.69]
[1764570167394,3.48,126.44,126.42,5.19737533]
[1764570167696,3.48,126.44,126.43,4.50737533]
[1764570167882,3.48,126.46,126.43,5.19737533]
[1764570168086,3.48,126.46,126.44,5.19737533]
[1764570168488,3.48,126.46,126.45,5.19737533]
[1764570168799,3.48,126.46,126.45,0.69]
[1764570168980,3.48,126.46,126.45,5.19737533]
[1764570169295,3.48,126.46,126.45,0.69]
[1764570169876,8.80994492,126.49,126.45,13.10563946]
[1764570170087,12.28994492,126.5,126.48,4.50737533]
[1764570170482,12.28994492,126.5,126.48,5.19737533]
[1764570170892,3.48,126.5,126.48,4.50737533]
[1764570171088,3.48,126.5,126.49,0.69]
[1764570173199,3.48,126.5,126.49,13.10313863]
[1764570174280,3.48,126.52,126.49,13.10313863]
[1764570174482,3.48,126.52,126.5,5.19737533]
[1764570175625,3.48,126.52,126.49,4.50737533]
[1764570175626,12.04394131,126.52,126.49,4.50737533]
[1764570175815,4.14,126.52,126.49,5.18737533]
[1764570176008,12.94994492,126.52,126.49,5.18737533]
[1764570176185,12.94994492,126.52,126.47,12.41411627]
[1764570176186,9.46994492,126.51,126.47,12.41411627]
[1764570176528,9.46994492,126.51,126.48,5.18737533]
[1764570177418,17.37476588,126.51,126.48,4.50737533]
[1764570177718,21.88214121,126.51,126.47,13.09411627]
[1764570178432,0.66,126.5,126.47,13.09411627]
[1764570178593,3.48,126.49,126.47,13.09411627]
[1764570178920,3.48,126.49,126.47,8.58674094]
[1764570179419,3.48,126.49,126.48,5.18737533]
[1764570180318,5.16737533,126.55,126.48,9.69475066]
[1764570180504,20.1925844,126.54,126.51,12.41176701]
[1764570180691,3.48,126.54,126.53,4.50737533]
[1764570180891,7.90099375,126.57,126.53,4.50737533]
[1764570181086,7.90099375,126.57,126.51,43.97453937]
[1764570181087,3.48,126.56,126.54,5.18737533]
[1764570181292,3.48,126.56,126.54,0.68]
[1764570181500,3.48,126.56,126.55,0.68]
[1764570181717,3.48,126.56,126.55,5.18737533]
[1764570182795,8.80994492,126.59,126.55,13.08939034]
[1764570182994,3.48,126.59,126.58,4.50737533]